Cogmind - Beta 16.1 @@@ ROGUE MODE // 2026.02.11 @ 21:06:46 Player: NEVERWINEVER Result: Destroyed by X6-P08(R) with Subdweller Laser Performance ------------- Evolutions (0) 0 Regions Visited (2) 400 Robots Destroyed (5) 25 Value Destroyed (80) 80 Prototype IDs (1) 20 Alien Tech Used (0) 0 Bonus (0) 0 TOTAL SCORE: 525 Bonus ------- None Cogmind --------- Core Integrity 0/250 Matter 300/300 Energy 91/100 System Corruption 3% Temperature Cool (6) Movement Rolling (110) Location -10/Subcaves Parts ------- > --- POWER (1+1) ------ (None) > --- PROPULSION (2) --- Subdweller Monowheel > --- UTILITY (2) ------ Disposable Heat Sink Subdweller Optics > --- WEAPON (2) ------- Powered Cannon > --- INVENTORY (5) ---- Light Treads Small Storage Unit Peak State ------------ > --- POWER ------------ (None) > --- PROPULSION ------- Subdweller Monowheel > --- UTILITY ---------- Disposable Heat Sink Subdweller Optics > --- WEAPON ----------- Powered Cannon > --- INVENTORY -------- Light Treads Small Storage Unit [Rating: 20] Favorites ----------- Power Light Ion Engine Engine Light Ion Engine Propulsion Light Treads Treads Light Treads Leg Aluminum Leg Wheel Subdweller Monowheel Utility Small Storage Unit Device Subdweller Optics Storage Small Storage Unit Processor Signal Interpreter Protection Scrap Shield Weapon Light Assault Rifle Energy Cannon Powered Cannon Ballistic Gun Light Assault Rifle Build | -11 -10 -10 ------- Run | Yrd Mat Sub Slots Evolved . | . . . Power . | . . . Propulsion . | . . . Utility . | . . . Weapon . | . . . Parts Attached 18 | 7 4 7 Power 2 | 1 1 . Engine 2 | 1 1 . Core . | . . . Reactor . | . . . Propulsion 7 | 3 2 2 Treads 5 | 2 2 1 Leg 1 | 1 . . Wheel 1 | . . 1 Hover . | . . . Flight . | . . . Utility 5 | 1 1 3 Device 2 | . . 2 Storage 1 | 1 . . Processor 1 | . 1 . Hackware . | . . . Protection 1 | . . 1 Artifact . | . . . Weapon 4 | 2 . 2 Energy Gun . | . . . Energy Cannon 1 | . . 1 Ballistic Gun 3 | 2 . 1 Ballistic Cannon . | . . . Launcher . | . . . Special Weapon . | . . . Impact Weapon . | . . . Slashing Weapon . | . . . Piercing Weapon . | . . . Special Melee Weapon . | . . . Unidentified Prototypes 1 | . . 1 Parts Lost 5 | . . 5 Power 1 | . . 1 Propulsion 2 | . . 2 Utility 1 | . . 1 Weapon 1 | . . 1 Highest Loss Streak 5 | . . 5 To Critical Strikes . | . . . Average Backups . | . . 1 Power . | . . . Propulsion . | . . . Utility . | . . . Weapon . | . . . Tool/Special . | . . . Unused Backups . | . . . Power . | . . . Propulsion . | . . . Utility . | . . . Weapon . | . . . Tool/Special . | . . . Average Slot Usage (%) 71 | . 81 55 Engine 10 | . 10 10 Treads 24 | . 26 21 Storage 9 | . 14 1 Processor 7 | . 11 1 Protection 3 | . . 7 Ballistic Gun 13 | . 18 7 Peak Build Rating 20 | 6 7 20 Average Rating 6 | 5 5 7 On Entrance 3 | . 6 5 Avg Prop Armor Cover (%) 24 | 24 . . Naked Turns 22 | . . 22 Heaviest Build 22 | 13 13 22 Greatest Support 40 | 40 40 40 Greatest Overweight (x) 4 | 4 . . Average Overweight (x) . | . . . Largest Inventory Capacity 8 | 8 8 8 Average Capacity 7 | 7 8 5 Most Carried 2 | 1 1 2 Average Carried . | . . 1 Final Capacity 8 | 8 8 5 Final Carried 2 | . . 2 Class Distribution -------------------- 100% | Mutant Dominant Class ---------------- Mutant | -10/Materials Mutant | -10/Subcaves Resources | -11 -10 -10 ----------- Run | Yrd Mat Sub Matter Collected 419 | 249 94 76 Remotely . | . . . Salvage Created 94 | . 94 . Parts 6 | . 6 . Haulers Intercepted . | . . . Recyclers Shooed 1 | . 1 . Parts Field Recycled . | . . . Retrieved Matter . | . . . Parts Self-Destructed 7 | . . 7 Prevented . | . . . Parts Restored . | . . . Kills | -11 -10 -10 ------- Run | Yrd Mat Sub Combat Hostiles Destroyed 4 | . 4 . Guns 4 | . 4 . Classes Destroyed 3 | . 3 . Watcher 1 | . 1 . Swarmer 3 | . 3 . Grunt 1 | . 1 . Best Kill Streak 3 | . 3 . Combat Bots Only 3 | . 3 . Max Kills in Single Turn 1 | . 1 . Gunslinging . | . . . Exploded . | . . . Melee . | . . . Uniques/NPCs Destroyed . | . . . Combat | -11 -10 -10 -------- Run | Yrd Mat Sub Hostile Shots Fired 82 | . 24 58 Missed 24 | . 7 17 Hits 58 | . 17 41 Projectile 58 | . 17 41 Critical Strikes 1 | . . 1 Damage Taken 1069 | . 144 925 Core 250 | . 28 222 Absorbed by Shields . | . . . Core Remaining (%) 100 | 100 . . Volleys Fired 28 | . 13 15 Largest 2 | . 2 1 Hottest 40 | . 40 20 Shots Fired 43 | . 28 15 Gun 43 | . 28 15 Cannon . | . . . Launcher . | . . . Special . | . . . Kinetic 43 | . 28 15 Thermal . | . . . Explosive . | . . . Electromagnetic . | . . . Robot Hit Streak 8 | . 3 8 Robot Miss Streak 5 | . 5 1 Penetration Max . | . . . Secondary Targets 2 | . 2 . Max Gunslinging Chain 1 | . 1 . Shots Hit Robots 22 | . 9 13 Core Hits 11 | . 7 4 Critical Kills . | . . . Critical Parts Destroyed . | . . . Critical Strikes . | . . . Melee Attacks . | . . . Impact . | . . . Slashing . | . . . Piercing . | . . . Sneak Attacks . | . . . Combat Hostiles . | . . . Follow-up Attacks . | . . . Damage Inflicted 225 | . 119 106 Guns 225 | . 119 106 Cannons . | . . . Explosions . | . . . Melee . | . . . Ramming . | . . . Kinetic 225 | . 119 106 Thermal . | . . . Explosive . | . . . Electromagnetic . | . . . Impact . | . . . Slashing . | . . . Piercing . | . . . Highest Corruption 3 | . 3 3 Average Corruption 2 | . 2 3 Corruption Purged . | . . . Corruption Blocked . | . . . Effects 10 | . 8 2 Message Errors 2 | . 1 1 Matter Fused 3 | . 3 . Heat Flow Errors 1 | . 1 . Data Loss (minor) 1 | . . 1 Misfires 2 | . 2 . Alerts 1 | . 1 . Overload Shots . | . . . Overflow Damage . | . . . Projectiles . | . . . Explosions . | . . . Melee . | . . . Knockbacks . | . . . Impact . | . . . Kinetic . | . . . Secondary . | . . . Self-Inflicted Damage . | . . . Shots . | . . . Rammed . | . . . Targets Rammed . | . . . Kicked . | . . . Crushed . | . . . Highest Temperature 260 | . 106 260 Average Temperature 82 | . 40 136 Received Heat Transfer 512 | . 24 488 Siege Activations . | . . . Martial Activations . | . . . Shielding Activations . | . . . Robots Disrupted . | . . . Combat Hostiles . | . . . Robots Corrupted . | . . . Combat Hostiles . | . . . Parts Fried . | . . . Impact Corruptions . | . . . Robots Melted . | . . . Combat Hostiles . | . . . Parts Melted . | . . . Heat Transferred . | . . . Parts Sabotaged . | . . . Parts Stolen . | . . . Parts Stripped . | . . . Power Chain Reactions . | . . . Alert | -11 -10 -10 ------- Run | Yrd Mat Sub Maximum Alert Level . | . . . Low Security (%) 100 | 100 100 . Level 1 . | . . . Level 2 . | . . . Level 3 . | . . . Level 4 . | . . . Level 5 . | . . . High Security . | . . . Max Security . | . . . Peak Influence 77 | . 77 . Initial . | . . . Average 14 | . 20 . Influence Increases 110 | . 110 . Destroy 0b10 Robot/C 80 | . 80 . Destroy 0b10 Robot/NC 5 | . 5 . Destroy Leader 12 | . 12 . Successful Hack 13 | . 13 . Influence Decreases 110 | . 98 12 Entered New Map 7 | . . 7 Time Decay 103 | . 98 5 Squads Dispatched . | . . . Investigation . | . . . Extermination . | . . . Reinforcement . | . . . Assault . | . . . Garrison . | . . . Intercept . | . . . Searches Triggered . | . . . Construction Impeded . | . . . Haulers Reinforced . | . . . Active Scanning Responses . | . . . Cargo Convoy Interrupts . | . . . Stealth | -11 -10 -10 --------- Run | Yrd Mat Sub Distress Signals 2 | . 2 . Communications Jammed . | . . . Distress Signals . | . . . Times Spotted 20 | . 7 13 Peak Tracking Total 7 | . 5 7 Tactical Retreats . | . . . Traps | -11 -10 -10 ------- Run | Yrd Mat Sub Traps Triggered 4 | . 4 . Indirectly . | . . . Trap Hack Attempts . | . . . Triggered . | . . . Disarmed . | . . . Reprogrammed . | . . . Reused . | . . . Traps Extracted . | . . . Installed . | . . . Triggered . | . . . Machines | -11 -10 -10 ---------- Run | Yrd Mat Sub Machines Disabled . | . . . Max in Single Turn . | . . . Machines Repaired . | . . . Machines Dismantled . | . . . Machines Sabotaged . | . . . Overloaded Fab Kills . | . . . Hacking | -11 -10 -10 --------- Run | Yrd Mat Sub Machines Accessed 2 | . 2 . Terminals 1 | . 1 . Fabricators . | . . . Repair Stations . | . . . Recycling Units 1 | . 1 . Scanalyzers . | . . . Garrison Access . | . . . Total Hacks 8 | . 8 . Successful 5 | . 5 . Failed 3 | . 3 . Catastrophic . | . . . Database Lockouts . | . . . Manual . | . . . Terminals 3 | . 3 . Fabricators . | . . . Repair Stations . | . . . Recycling Units 5 | . 5 . Scanalyzers . | . . . Garrison Access . | . . . Terminal Hacks 1 | . 1 . Record 1 | . 1 . Fabricator Hacks . | . . . Repair Station Hacks . | . . . Recycling Unit Hacks 4 | . 4 . Recycle Component 1 | . 1 . Process 1 | . 1 . Report Inventory 1 | . 1 . Retrieve Matter 1 | . 1 . Scanalyzer . | . . . Garrison Access Hacks . | . . . Unauthorized Hacks . | . . . Terminals . | . . . Fabricators . | . . . Repair Stations . | . . . Recycling Units . | . . . Scanalyzers . | . . . Garrison Access . | . . . Data Cores Recovered . | . . . Used . | . . . Hacking Detections 2 | . 2 . Full Trace Events 1 | . 1 . Feedback Events . | . . . Feedback Blocked . | . . . Robot Schematics Acquired . | . . . Robots Built . | . . . Authchips . | . . . Time . | . . . Total Robot Build Rating . | . . . Part Schematics Acquired . | . . . Parts Built . | . . . Authchips . | . . . Time . | . . . Total Part Build Rating . | . . . Part Studies Acquired . | . . . Parts Repaired . | . . . Time . | . . . Parts Recycled 1 | . 1 . Recycled Matter 90 | . 90 . Retrieved Matter 90 | . 90 . Retrieved Components . | . . . Parts Scanalyzed . | . . . Part Schematics Acquired . | . . . Parts Damaged . | . . . Bothacking | -11 -10 -10 ------------ Run | Yrd Mat Sub Used RIF Installer . | . . . Robots Hacked . | . . . Non-combat . | . . . Combat . | . . . Robot Hacks Applied . | . . . Relay Couplers Released . | . . . Fabnet Peak Effective % . | . . . Robots Rewired . | . . . Allies Hacked . | . . . Hacks Repelled . | . . . Allies | -11 -10 -10 -------- Run | Yrd Mat Sub Total Allies . | . . . Largest Group . | . . . Highest-Rated Group . | . . . Highest-Rated Ally . | . . . Total Orders . | . . . Ally Attacks . | . . . Total Damage . | . . . Kills . | . . . Allies Corrupted . | . . . Allies Melted . | . . . Intel | -11 -10 -10 ------- Run | Yrd Mat Sub Active Infowar (turns) 14 | . . 14 Optics 14 | . . 14 Robot Analysis Total . | . . . Derelict Logs Recovered 1 | . . 1 Drone Launches . | . . . Drone Recoveries . | . . . Exploration | -11 -10 -10 ------------- Run | Yrd Mat Sub Turns Passed 841 | 174 409 258 Spaces Moved 507 | 109 228 170 Core 81 | 38 . 43 Treads 406 | 69 228 109 Legs 2 | 2 . . Wheels 18 | . . 18 Hover . | . . . Flight . | . . . Fastest Speed 50 | 50 160 50 Average Speed 145 | 146 160 126 Slowest Speed 250 | 250 160 160 Overloaded Moves . | . . . Propulsion Burnouts . | . . . Robots Hopped . | . . . Potential Cave-ins . | . . . Cave-ins Triggered . | . . . Exploration Rate (%) 18 | 6 38 11 Regions Visited 2 Branch Regions 1 Pre-discovered Areas . | . . . Known Exits Taken 1 | . 1 . Unknown Exits Taken 1 | 1 . . Scrap Searched . | . . . Spaces Dug . | . . . Terrain Destroyed . | . . . Melee . | . . . Projectile . | . . . AOE . | . . . Terrain Rammed . | . . . Walls Destroyed . | . . . Machines Disabled . | . . . Actions | -11 -10 -10 --------- Run | Yrd Mat Sub Total 565 | 121 246 198 Wait 9 | 4 1 4 Move 505 | 108 227 170 Hop . | . . . Pick Up 1 | 1 . . Fast Attach 16 | 6 4 6 Attach . | . . . Detach 2 | . . 2 Swap 3 | 1 1 1 Drop 1 | 1 . . Fire 28 | . 13 15 Melee . | . . . Ram . | . . . Kick . | . . . Crush . | . . . Escape Stasis . | . . . Rewire . | . . . Trap . | . . . Miscellaneous . | . . . Route ------- -11/Scrapyard -10/Materials (discovered 2 exits: [*Min] / *Sub) -10/Subcaves History --------- Turn | Location | Event 23 | -11/Scrapyard | Discovered new exit (range 15) 175 | -11/Scrapyard | Entered Materials 308 | -10/Materials | Build established: Mutant 324 | -10/Materials | Discovered new exit (range 12) 568 | -10/Materials | Discovered new exit (range 10) 582 | -10/Materials | Identified exit to Subcaves 584 | -10/Materials | Entered Subcaves 585 | -10/Subcaves | Approached by a straggling Scientist 599 | -10/Subcaves | Learned 2 Materials zone layouts 644 | -10/Subcaves | A Subdweller sparked back to life 644 | -10/Subcaves | A Subdweller sparked back to life 721 | -10/Subcaves | Shifting Twisted Machinery released Spk. Treads 746 | -10/Subcaves | Ambushed by swarm of Subdwellers 796 | -10/Subcaves | Core integrity fell below 50% 798 | -10/Subcaves | Core integrity fell below 20% 819 | -10/Subcaves | Lost 4 allies 821 | -10/Subcaves | Found Prototype Energy Cannon 821 | -10/Subcaves | Identified Powered Cannon 822 | -10/Subcaves | Attached Powered Cannon, gained temporary slot: Power 826 | -10/Subcaves | Lost 5 parts (1p2n1u1w) 842 | -10/Subcaves | Destroyed by X6-P08(R) with Subdweller Laser Last Messages --------------- 00821_ Identified Powered Cannon. [Achievement: Risk Taker] [Achievement: There's More Where That Came From] Notice for Steam players: Cogmind player global achievement rates displayed by Steam are all underreported, in many cases by a huge margin, due to how they are calculated by Valve. The Powered Cannon is "overloadable", activating it again increases its power for an additional resource cost, and may have unintended consequences. See Stability stat context help for more info. 00822_ Core temporarily expanded with Power slot. 00823_ Acquired 20 matter. 00828_ Acquired Sub. Optics. [Achievement: Spot Them First] 00830_ Acquired Disposable Heat Sink. 00832_ Acquired 20 matter. 00836_ 6A-IQS(u) builds Twisted Machinery. Map ----- +----------------------------------------------------+ | ???????????????????# """ "###"#??????????????? | | ???????????????????### " """ ##?????????????? | | ?????????????????????### # #?????????????? | | ??????????????????????## ## # #?????????????? | | ??????????????????????# ### # ##?????????????? | | ??????????????????????## #?# # ###???????????? | | ????????????????????# ?## ##?# ###?????????? | | ????????????????????# ## ### ##????????? | | ??????????????????### #????????? | | ?????????????????## ## ### #????????? | | ??????????????#### ## ## #??###????????? | | ????????????### # ####?# #??##?????????? | | ????????????# ##### ##? #?????????? | | ????????????# #"" ## ##### #?????????? | | ????????????# ?##""" ##??# #?????????? | | ???????????# ???#""" #?? #??????????? | | ????????????????###u #? #???????????? | | ???????????## ##"# # # "" % ## ###?????????? | | ???????? "" ## R% #????????? | | ??????????# # " # R ;;## #????????? | | ????????????### "###""" ## ##??? ##????????? | | ??????????????# #??##""## ##?????? #?????????? | | ??????????????# ???#""" #####???????????????? | | ??????????????# "##""" #########???????? | | ???????????# # """" #???????? | | ???????? " "" @%& #???????? | | ???????? " !%! #### & ## ##???????? | | ????????? ## ??#???####%* #?? #????????? | | ?????????????#???????????# < # #???? #????????? | | ?????????????????????????# #?????##????????? | | ?????????????????????????# ??????????????? | | ????????????????????????? ?????????????? | | ???????????????????????? " #????????????? | | ???????????????????????# " #????????????? | | ???????????????????????## #####????????????? | | ????????????????????????#### #????????????????? | | ???????????????????????????? ????????????????? | | ????????????????????????????# ???????????????? | | ?????????????????????????????# ???????????????? | | ?????????????????????????????? ???????????????? | | ?????????????????????????????? ##??????????????? | | ?????????????????????????????? #???????????????? | | ?????????????????????????????? ?????????????????? | | ??????????????????????????????? ?????????????????? | | ??????????????????????????????? ?????????????????? | | ?????????????????????????????????????????????????? | | ?????????????????????????????????????????????????? | | ?????????????????????????????????????????????????? | | ?????????????????????????????????????????????????? | | ?????????????????????????????????????????????????? | +----------------------------------------------------+ Best States ------------- Heat Dissipation 25 Coolant Potential 50 Energy Generation 10 Energy Capacity 250 Matter Stores 300 Matter Capacity 300 Sight Range 21 Terrain Scan Density 10 Armor Coverage 800 Evasion (%) 50 Recoil Reduction 2 Item Schematics ----------------- None Robot Schematics ------------------ None Fabricated ------------ Nothing Repaired ---------- Nothing Studied --------- None Alien Tech Used ----------------- None Achievements -------------- DATA ERROR: Steam Global Achievement% Risk Taker Spot Them First There's More Where That Came From Challenges ------------ None Game ------ Seed ParticleCryofiberJoltstriker Manual? 0 Play Time 00:10:32 Cumulative 2.0 hours Start 2026.02.11 @ 20:55:56 End 2026.02.11 @ 21:06:46 Sessions 1 Manual Loads 0 Difficulty Rogue Special Mode None Game No. 6 Rogue 6 Adventurer 0 Explorer 0 Win Type - Total 0 Types 0/0/0/0/0/0/0/0/0/0 Lore% 0 Gallery% 5 Achievement% 3 Wizard Run 0 Options --------- Layout 1 ASCII 0 Keyboard 0 Movement Numpad Keybinds 0 Fullscreen 1 Font 32/SmallcapsGlow Map View 50x35 Zoom Use 0% Tactical HUD 1 Map Filters NONE Filters NONE Steam 1 RUN: 646528fb-7846-4d7c-ba60-a7b1229bb031